Workbook

Sheet 附件1
A1: 附件1
A2: 河源市交通基础设施建设项目投资汇总表（2025—2027年）
A3: 项目名称 | B3: 里程 （公里） | C3: 建设规模（内容） | D3: 总投资 （亿元） | E3: 计划2025-2027年完成投资（亿元） | F3: 备注
A4: 合计 | B4: =B5+B8+B11+B12 -> 1594.6 | D4: =D5+D8+D12+D11 -> 328.28 | E4: =E5+E8+E11+E12 -> 132.8
A5: 一、河源市高速公路、高铁建设项目（6项） | B5: =SUM(B6:B7) -> 87.5 | C5: 高速公路 | D5: 141.38 | E5: 44.9
A6: （一）在建项目（1项） | B6: 42.8 | C6: 高速公路 | D6: 62.48 | E6: 8.0
A7: （二）2025-2027年计划新开工及推进前期项目（5项，含服务区） | B7: 44.7 | C7: 高速公路 | D7: 78.9 | E7: 36.9
A8: 二、河源市普通国省道建设项目（18项） | B8: =SUM(B9:B10) -> 374.0 | C8: 普通公路 | D8: =SUM(D9:D10) -> 105.9 | E8: 39.0
A9: （一）2025-2027年续建项目（10项） | B9: 217.9 | C9: 普通公路 | D9: 79.9 | E9: 23.6
A10: （二）2025-2027年计划新开工及推进前期项目（8项） | B10: 156.1 | C10: 普通公路 | D10: 26 | E10: 15.4
A11: 三、河源市农村公路建设任务（各县区） | B11: 1066.1 | C11: 单改双车道 | D11: 31.5 | E11: 31.5
A12: 四、河源市水运建设项目（2项） | B12: 67 | C12: 航道及港口 | D12: 49.5 | E12: 17.4
A13: （一）2025-2027年计划新开工及推进前期项目（2项） | B13: 67 | C13: 航道及港口 | D13: 49.5 | E13: 17.4

Sheet 附件2
A1: 附件2
A2: 河源市高速公路（含服务区）和高速铁路建设项目表（2025—2027年）
A3: 序号 | B3: 项目名称 | C3: 里程 （公里） | D3: 建设规模 （内容） | E3: 总投资 （亿元） | F3: 截至10月已完成投资 | G3: 剩余投资 | H3: 极限加压 | I3: 计划2025-2027年完成投资（亿元） | J3: （计划）开工时间 | K3: （计划）完工时间 | L3: 项目状态（工可阶段/设计阶段） | M3: 所属县区 | N3: 备注
A4: 合计 | C4: =C5+C7 -> 87.5 | E4: 141.38 | F4: 21.2 | G4: 94.758 | H4: 30 | I4: 44.9
A5: （一）在建项目 | C5: 42.8 | E5: 62.48 | F5: 21.2 | G5: =SUM(G6:G7) -> 27.0 | H5: =SUM(H6:H6) -> 20.0 | I5: 8.0
A6: 1 | B6: 长深高速河源热水至惠州平南段改扩建项目河源段 | C6: 42.8 | D6: 高速公路 | E6: 62.48 | F6: 93.87 | G6: =E6*0.85-F6 -> -40.762 | H6: 20.0 | I6: 8.0 | J6: 2021 | K6: 2025 | L6: 在建 | M6: 源城区、东源县 | N6: 列入省三年行动方案
A7: （二）2025-2027年计划新开工及推进前期项目 | C7: 44.7 | E7: 78.9 | F7: =SUM(F8:F8) -> 0.0 | G7: 67.8 | H7: 10.0 | I7: 36.9
A8: 1 | B8: 河源紫金至江东新区高速公路 | C8: 44.7 | D8: 高速公路 | E8: 77.0 | G8: =E8*0.88-F8 -> 67.76 | H8: 10.0 | I8: 35.0 | J8: 2025 | K8: 2029 | L8: 工可阶段 | M8: 江东新区、紫金县 | N8: 列入省三年行动方案，力争项目2025年12月开工建设
A9: 2 | B9: 水墩停车区（汕湛高速揭西大溪至博罗石坝段） | C9: 双侧 | D9: 高速公路服务区 | E9: 0.5 | I9: 0.5 | J9: 2025 | K9: 2025 | L9: 前期审批 | M9: 紫金县
A10: 3 | B10: 义容停车区（汕湛高速揭西大溪至博罗石坝段） | C10: 双侧 | D10: 高速公路服务区 | E10: 0.4 | I10: 0.4 | J10: 2025 | K10: 2025 | L10: 前期审批 | M10: 紫金县
A11: 4 | B11: 隆街停车区（武深高速仁化至新丰段） | C11: 双侧 | D11: 高速公路服务区 | E11: 0.7 | I11: 0.7 | J11: 2025 | K11: 2026 | L11: 前期审批 | M11: 连平县
A12: 5 | B12: 紫金停车区（河惠莞高速龙川至紫金段） | C12: 双侧 | D12: 高速公路服务区 | E12: 0.3 | I12: 0.3 | J12: 2025 | K12: 2026 | L12: 前期审批 | M12: 紫金县
A13: （三）储备项目 | C13: =SUM(C14:C26) -> 1940.0 | E13: =SUM(E14:E26) -> 2782.3
A14: 1 | B14: 广州至河源高铁白云机场T3至河源段 | C14: 182.0 | D14: 高速铁路 | E14: 255.0 | I14: / | J14: / | K14: / | L14: 预可阶段 | M14: 源城区、东源县、 龙川县 | N14: 列入省三年 行动方案
A15: 2 | B15: 河源（龙川）至汕尾铁路 | C15: 210.0 | D15: 普铁 | E15: 213.0 | I15: / | J15: / | K15: / | L15: 预可阶段 | M15: 紫金县、东源县、 龙川县
A16: 3 | B16: 韶关至龙川铁路 | C16: 217.0 | D16: 普铁 | E16: 245.0 | I16: / | J16: / | K16: / | L16: 预可阶段 | M16: 连平县、和平县、 龙川县
A17: 4 | B17: 河揭高铁 | C17: 250.0 | D17: 高速铁路 | E17: 400.0 | I17: / | J17: / | K17: / | L17: 预可阶段 | M17: 江东新区、紫金县
A18: 5 | B18: 赣广高铁 | C18: 311.0 | D18: 高速铁路 | E18: 452.0 | I18: / | J18: / | K18: / | L18: 预可阶段 | M18: 连平县
A19: 6 | B19: 深河高铁 | C19: 134.0 | D19: 高速铁路 | E19: 210.0 | I19: / | J19: / | K19: / | L19: 预可阶段 | M19: 江东新区
A20: 7 | B20: 河（源）惠（州）汕（尾）高速公路 | C20: 144.7 | D20: 高速公路 | E20: 273.4 | I20: / | J20: 2028 | K20: 2032 | L20: 预可阶段 | M20: 东源县、江东新区、紫金县 | N20: 列入省三年 行动方案
A21: 8 | B21: 龙南至河源高速公路河源上陵至热水段改扩建工程 | C21: 100.3 | D21: 高速公路 | E21: 150.9 | I21: / | J21: 2028 | K21: 2032 | L21: 预可阶段 | M21: 东源县、和平县 | N21: 列入省三年 行动方案
A22: 9 | B22: 广紫高速河源段 | C22: 125.0 | D22: 高速公路 | E22: 278.0 | I22: / | J22: / | K22: / | L22: 预可阶段 | M22: 源城区、紫金县
A23: 10 | B23: 连平武高速河源段 | C23: 117.0 | D23: 高速公路 | E23: 118.0 | I23: / | J23: / | K23: / | L23: 预可阶段 | M23: 连平县、和平县、 龙川县
A24: 11 | B24: 梅州五华至惠州惠东高速公路河源段 | C24: 20.0 | D24: 高速公路 | E24: 28.0 | I24: / | J24: / | K24: / | L24: 预可阶段 | M24: 紫金县
A25: 12 | B25: 紫金至汕尾高速河源段 | C25: 60.0 | D25: 高速公路 | E25: 73.0 | I25: / | J25: / | K25: / | L25: 预可阶段 | M25: 紫金县、东源县、 龙川县
A26: 13 | B26: 河惠汕高速延伸至赣州 | C26: 69.0 | D26: 高速公路 | E26: 86.0 | I26: / | J26: / | K26: / | L26: 预可阶段 | M26: 东源县、和平县

Sheet 附件3
A1: 附件3
A2: 河源市普通国省道建设项目表（2025—2027年）
A3: 序号 | B3: 项目名称 | C3: 里程 （公里） | D3: 建设规模（内容） | E3: 项目总投资 （亿元） | F3: 至2024年累计完成投资（亿元） | G3: 计划2025-2027 年完成投资 （亿元） | H3: 计划2025年完成投资 （亿元） | I3: 计划2026年完成投资（亿元） | J3: 计划2027年完成投资（亿元） | K3: （计划）开工时间 | L3: （计划）完工时间 | M3: 项目状态 | N3: 项目进展 | O3: 业主单位 | P3: 责任县区 | Q3: 备注
A4: 合计（续建+新开工） | C4: =C5+C16 -> 374.0 | E4: 105.9 | F4: 45.4 | G4: 39.0 | H4: 11.7 | I4: 13.7 | J4: 13.6
A5: （一）2025-2027年续建项目 | C5: =SUBTOTAL(9,C6:C15) -> 217.9 | E5: 79.9 | F5: 45.4 | G5: 23.6 | H5: 8.1 | I5: 7.9 | J5: 7.6
A6: 1 | B6: 国道G205线龙川县城段 | C6: 24.1 | D6: 一级公路 | E6: 13.3 | F6: 11.3 | G6: 2.0 | H6: 2.0 | I6: 0.0 | J6: 0.0 | K6: 2019 | L6: 2025 | M6: 在建 | N6: 项目已开工建设、完成用地报批，累计完成投资11.3亿。 | O6: 龙川县公路事务中心 | P6: 龙川县 | Q6: 列入省三年行动方案
A7: 2 | B7: 国道G205线河源市热水至埔前段改线工程 | C7: 36.5 | D7: 一级公路 | E7: 44.3 | F7: 24.5 | G7: 13.0 | H7: 3.0 | I7: 5.0 | J7: 5.0 | K7: 2020 | L7: 2028 | M7: 在建 | N7: 先行工程已开工建设，正在办理用地报批手续。 | O7: 市公路事务中心 | P7: 东源县、江东新区、源城区 | Q7: 列入省三年行动方案
A8: 3 | B8: 国道G236线龙川县丰稔至县城段 | C8: 13.1 | D8: 一级公路 | E8: 2.8 | F8: 1.9 | G8: 0.9 | H8: 0.4 | I8: 0.5 | J8: 0.0 | K8: 2022 | L8: 2026 | M8: 在建 | N8: 项目已开工建设，累计完成投资1.9亿元，正在办理用地报批手续。 | O8: 龙川县公路事务中心 | P8: 龙川县 | Q8: 列入省三年行动方案
A9: 4 | B9: 国道G238线和平县鸭塘至兴隆中桥段改建工程 | C9: 2.8 | D9: 一级公路 | E9: 0.6 | F9: 0.2 | G9: 0.4 | H9: 0.4 | K9: 2022 | L9: 2025 | M9: 在建 | N9: 立项、施工图已批复，用地未解决 | O9: 和平县公路事务中心 | P9: 和平县 | Q9: 列入省三年行动方案
A10: 5 | B10: 国道G105线连平县城过境段改线工程 | C10: 7.7 | D10: 一级公路 | E10: 4.7 | F10: 2.0 | G10: 2.7 | H10: 1.5 | I10: 0.8 | J10: 0.4 | K10: 2024 | L10: 2027 | M10: 在建 | N10: 已完成项目用地报批等前期，正开展征地拆迁，已完成投资1.5亿元。 | O10: 连平县公路事务中心 | P10: 连平县 | Q10: 列入省三年行动方案
A11: 6 | B11: 省道S238线四都至贝岭段二级公路改建工程 | C11: 55.9 | D11: 二级公路 | E11: 4.4 | F11: 2.5 | G11: 1.5 | H11: 0.2 | I11: 0.6 | J11: 0.7 | K11: 2019 | L11: 2028 | M11: 在建 | N11: 项目已开工建设，累计完成投资2.47亿元，正在办理用地报批手续。 | O11: 龙川县农村公路服务中心 | P11: 龙川县 | Q11: 列入省三年行动方案，低等级
A12: 7 | B12: 省道S253线忠信至青州段改建工程 | C12: 23.2 | D12: 二级公路 | E12: 1.9 | F12: 1.5 | G12: 0.4 | H12: 0.1 | I12: 0.2 | J12: 0.1 | K12: 2021 | L12: 2027 | M12: 在建 | N12: 项目已开工建设，累计完成投资1.5亿元，正在办理用地报批手续。 | O12: 连平县地方公路管理局 | P12: 连平县 | Q12: 列入省三年行动方案，低等级
A13: 8 | B13: 省道S341连平隆街至新河村段 | C13: 16.2 | D13: 二级公路 | E13: 1.6 | F13: 0.9 | G13: 0.7 | H13: 0.1 | I13: 0.2 | J13: 0.4 | K13: 2021 | L13: 2027 | M13: 在建 | N13: 项目已开工建设，累计完成投资0.93亿元，正在办理用地报批手续。 | O13: 连平县地方公路管理局 | P13: 连平县 | Q13: 列入省三年行动方案，低等级
A14: 9 | B14: 省道S230线东源县乐村至义合渡口段公路工程 | C14: 29.5 | D14: 二、三级公路 | E14: 4.9 | F14: 0.2 | G14: 1.0 | H14: 0.2 | I14: 0.3 | J14: 0.5 | K14: 2022 | L14: 2027 | M14: 在建 | N14: 项目一期已开工建设，累计完成投资2300万元。项目全线正开展工可规模调整，正在办理用地预审手续。 | O14: 东源县公路事务中心 | P14: 东源县 | Q14: 列入省三年行动方案，低等级
A15: 10 | B15: 省道S253线青州至热水段改建工程（一期：K15+640-K24+400） | C15: 8.8 | D15: 二级公路 | E15: 1.4 | F15: 0.4 | G15: 1.0 | H15: 0.2 | I15: 0.3 | J15: 0.5 | K15: 2022 | L15: 2027 | M15: 在建 | N15: 立项、施工图已批复，用地未解决，正在办理用地报批手续 | O15: 和平县农村公路服务中心 | P15: 和平县 | Q15: 列入省三年行动方案，低等级
A16: （二）2025-2027年计划新开工项目 | C16: =SUBTOTAL(9,C17:C24) -> 156.1 | E16: 26.0 | F16: 0.0 | G16: 15.4 | H16: =SUBTOTAL(9,H17:H24) -> 3.6 | I16: 5.8 | J16: 6.0
A17: 1 | B17: 国道G236线紫金县城龙潭至升平段改建工程 | C17: 6.37 | D17: 一级公路 | E17: 2.0 | F17: 0.0 | G17: 2.0 | H17: 0.8 | I17: 0.8 | J17: 0.4 | K17: 2025 | L17: 2027 | M17: 施工图阶段 | N17: 2024年11月由省交通运输厅批复施工图设计；当前紫城镇政府已完成征地拆迁方案，县政府已同意实施；正在开展施工、监理费用财政评审工作。 | O17: 紫金县公路事务中心 | P17: 紫金县 | Q17: 列入省三年行动方案
A18: 2 | B18: 国道G236线东源蓝口至黄村段 | C18: 20.30 | D18: 二级公路 | E18: 3.5 | F18: 0.0 | G18: 1.0 | H18: 0.2 | I18: 0.3 | J18: 0.5 | K18: 2026 | L18: 2028 | M18: 工可阶段 | N18: 工可报告正根据咨询审查意见修编。 | O18: 东源县公路事务中心 | P18: 东源县 | Q18: 列入省三年行动方案，低等级
A19: 3 | B19: 国道G238线龙川龙母至铁场段 | C19: 11.77 | D19: 二级公路 | E19: 3.2 | F19: 0.0 | G19: 1.5 | H19: 0.5 | I19: 0.5 | J19: 0.5 | K19: 2026 | L19: 2028 | M19: 工可阶段 | N19: 工可报告已出具审查意见，正办理立项，立项文件已提交到省发展改革委 | O19: 龙川县公路事务中心 | P19: 龙川县 | Q19: 列入省三年行动方案，低等级
A20: 4 | B20: 省道S341线东源县船塘至涧头段改建工程 | C20: 36.8 | D20: 二级公路 | E20: 6.6 | F20: 0.0 | G20: 2.5 | H20: 0.5 | I20: 0.8 | J20: 1.2 | K20: 2025 | L20: 2028 | M20: 施工图阶段 | N20: 项目初步设计已批复，正在进行施工图设计修编 | O20: 东源县公路事务中心 | P20: 东源县 | Q20: 列入省三年行动方案，低等级
A21: 5 | B21: 省道S340线紫金县龙窝至九和段 | C21: 22.18 | D21: 二级公路 | E21: 3.0 | F21: 0.0 | G21: 3.0 | H21: 0.8 | I21: 1.2 | J21: 1.0 | K21: 2025 | L21: 2027 | M21: 初设阶段 | N21: 初设设计已上报审查 | O21: 紫金县公路事务中心 | P21: 紫金县 | Q21: 列入省三年行动方案，低等级
A22: 6 | B22: 省道S333线龙川县新田径塘（市界）至赤光大芬段公路改建工程 | C22: 20.345 | D22: 三级公路 | E22: 2.5 | F22: 0.0 | G22: 2.5 | H22: 0.5 | I22: 1.0 | J22: 1.0 | K22: 2025 | L22: 2027 | M22: 施工图阶段 | N22: 施工图编制中 | O22: 龙川县农村公路服务中心 | P22: 龙川县 | Q22: 列入省三年行动方案，低等级
A23: 7 | B23: 省道S341线龙川县通衢至黄布段 | C23: 23.84 | D23: 二级公路 | E23: 3.2 | F23: 0.0 | G23: 1.8 | H23: 0.0 | I23: 0.8 | J23: 1.0 | K23: 2026 | L23: 2028 | M23: 工可阶段 | N23: 已完成工可报告修编，正在办理用地预审和防洪评价 | O23: 龙川县公路事务中心 | P23: 龙川县 | Q23: 列入省三年行动方案，低等级
A24: 8 | B24: 省道S340线紫金县九和至义容段 | C24: 14.47 | D24: 二级公路 | E24: 2.0 | F24: 0.0 | G24: 1.0 | H24: 0.3 | I24: 0.4 | J24: 0.4 | K24: 2026 | L24: 2028 | M24: 工可阶段 | N24: 办理用地预审中 | O24: 紫金县公路事务中心 | P24: 紫金县 | Q24: 列入省三年行动方案，低等级
A25: （三）储备项目 | B25: （三）储备项目 | C25: =SUM(C26:C32) -> 92 | E25: =SUM(E26:E32) -> 55
A26: 1 | B26: 国道G236线龙川县城至佗城段改建工程 | C26: 10.30 | D26: 一级公路 | E26: 10.6 | K26: 2028 | L26: 2032 | M26: 预备 | N26: 开展项目线位研究 | O26: 龙川县公路事务中心 | P26: 龙川县 | Q26: 列入省三年行动方案，低等级
A27: 2 | B27: 国道G236线龙川县龙母至丰稔段 | C27: 16.10 | D27: 一级公路 | E27: 12.6 | K27: 2028 | L27: 2032 | M27: 预备 | N27: 开展项目线位研究 | O27: 龙川县公路事务中心 | P27: 龙川县 | Q27: 列入省三年行动方案
A28: 3 | B28: 国道G358线连平县城过境段改线工程 | C28: 10.60 | D28: 一级公路 | E28: 7.3 | K28: 2028 | L28: 2032 | M28: 预备 | N28: 开展项目线位研究 | O28: 连平县公路事务中心 | P28: 连平县 | Q28: 列入省三年行动方案
A29: 2 | B29: 国道G358线连平县大湖至油溪段改线工程 | C29: 15.50 | D29: 一级公路 | E29: 9.7 | K29: 2028 | L29: 2032 | M29: 预备 | N29: 开展项目线位研究 | O29: 连平县公路事务中心 | P29: 连平县
A30: 3 | B30: 国道G358线连平县城过境段改线工程 | C30: 10.60 | D30: 一级公路 | E30: 7.2 | K30: 2030 | L30: 2033 | M30: 预备 | N30: 开展项目线位研究 | O30: 连平县公路事务中心 | P30: 连平县
A31: 3 | B31: 国道G358线和平县阳明至彭寨段 | C31: 20.60 | D31: 一级公路 | E31: 7.2 | K31: 2028 | L31: 2033 | M31: 预备 | N31: 开展项目线位研究 | O31: 和平县公路事务中心 | P31: 和平县
A32: 4 | B32: 省道S513线连平县內莞至元善段 | C32: 8.77 | D32: 二级公路 | E32: 0.7 | K32: 2028 | L32: 2032 | M32: 预备 | N32: 开展项目线位研究 | O32: 连平县公路事务中心 | P32: 连平县
A33: 6 | B33: 省道S243线紫金县蓝塘至惠东界段改建工程 | C33: 7.90 | D33: 二级公路 | E33: 0.6 | K33: 2030 | L33: 2034 | M33: 预备 | N33: 开展项目线位研究 | O33: 紫金县公路事务中心 | P33: 紫金县
A34: 7 | B34: 省道S341线东源县上莞至船塘段改建工程 | C34: 32.70 | D34: 二级公路 | E34: 4.9 | K34: 2030 | L34: 2034 | M34: 预备 | N34: 开展项目线位研究 | O34: 东源县公路事务中心 | P34: 东源县
A35: 8 | B35: 省道S253线和平县阳明至热水段改建工程 | C35: 18.85 | D35: 二级公路 | E35: 3.1 | K35: 2030 | L35: 2034 | M35: 预备 | N35: 开展项目线位研究 | O35: 和平县公路事务中心 | P35: 和平县
A36: 9 | B36: 省道S238线龙川县鹤市至紫市段改建工程 | C36: 20.40 | D36: 二级公路 | E36: 4.0 | K36: 2030 | L36: 2034 | M36: 预备 | N36: 开展项目线位研究 | O36: 龙川县公路事务中心 | P36: 龙川县

Sheet 附件4
A1: 附件4
A2: 河源市农村公路建设任务表（2025—2027年）
A3: 序号 | B3: 县区名称 | C3: 里程 （公里） | D3: 建设规模（内容） | H3: 计划总投资 （万元） | I3: 新增通双车道行政村个数（个） | J3: 其中：2025年建设任务（公里） | K3: 其中：2026-2027年建设任务（公里） | L3: 责任单位 | M3: 备注
D4: 县道提档升级四升三 | E4: 行政村通双车道单改双 | F4: 1000人以上自然村通双车道 | G4: 其他路 网联结
A5: 全市 | C5: =SUM(D5:G5) -> 1066.1 | D5: =SUM(D6:D12) -> 705.0 | E5: 133.1 | F5: 48.0 | G5: 180.0 | H5: =C5*295 -> 314499.5 | I5: =SUM(I6:I12) -> 160.0 | J5: 592.8 | K5: 473.3
A6: 1 | B6: 源城区 | C6: 6.0 | G6: 6.0 | H6: 1770.0 | K6: =C6-J6 -> 6.0 | L6: 源城区交通运输局
A7: 2 | B7: 东源县 | C7: 214.9 | D7: 163.0 | E7: 3.9 | F7: 10.0 | G7: 38.0 | H7: 63395.5 | I7: 18.0 | J7: 69.2 | K7: 145.7 | L7: 东源县交通运输局
A8: 3 | B8: 和平县 | C8: 209.6 | D8: 114.0 | E8: 74.6 | F8: 3.0 | G8: 18.0 | H8: 61832.0 | I8: 65.0 | J8: 144.1 | K8: 65.5 | L8: 和平县交通运输局
A9: 4 | B9: 龙川县 | C9: 227.8 | D9: 148.0 | E9: 4.8 | F9: 20.0 | G9: 55.0 | H9: 67201.0 | I9: 49.0 | J9: 169.8 | K9: 58.0 | L9: 龙川县交通运输局
A10: 5 | B10: 紫金县 | C10: 243.8 | D10: 169.0 | E10: 49.8 | F10: 15.0 | G10: 10.0 | H10: 71921.0 | I10: 25.0 | J10: 130.4 | K10: 113.4 | L10: 紫金县交通运输局
A11: 6 | B11: 连平县 | C11: 153.0 | D11: 100.0 | F11: 0.0 | G11: 53.0 | H11: 45135.0 | I11: 2.0 | J11: 74.9 | K11: 78.1 | L11: 连平县交通运输局
A12: 7 | B12: 江东新区 | C12: 11.0 | D12: 11.0 | H12: 3245.0 | I12: 1.0 | J12: 4.4 | K12: 6.6 | L12: 江东新区交通 公路办

Sheet 附件5
A1: 附件5
A2: 河源市水运建设项目表（2025—2027年）
A3: 序号 | B3: 项目名称 | C3: 建设规模（内容） | D3: 项目总 投资 （亿元） | E3: 计划2025-2027年完成投资 （亿元） | F3: （计划）开工时间 | G3: （计划）完工时间 | H3: 项目状态（工可阶段/设计阶段） | I3: 所属县区 | J3: 备注
A4: 合计 | D4: =D5 -> 49.5 | E4: =E5 -> 17.4
A5: （一）新开工项目 | D5: =D6+D8 -> 49.5 | E5: =E6+E8 -> 17.4
A6: （1）港口码头项目（1项） | D6: 6.5 | E6: 2.4
A7: 1 | B7: 河源港源城港区罗塘作业区中储粮码头 | C7: 东江右岸新丰江口至惠州界岸域，定位为一类货运口岸，拟规划岸线长3408米。拟先建设8个1000吨级泊位，设3个粮食装卸专用泊位、3个通用泊位和2个集装箱泊位，使用岸线长472米。 | D7: 6.5 | E7: 2.4 | F7: 2025 | G7: 2029 | H7: 工可阶段 | I7: 源城 | J7: 列入省三年行动方案
A8: （2）内河航道项目（1项） | D8: 43.0 | E8: 15.0
A9: 1 | B9: 东江河源至石龙航道扩能升级工程河源段 | C9: 约67公里，按内河三级航道（通航1000吨级内河船舶）标准建设。全线总投资103.8亿元 | D9: 43.0 | E9: 15.0 | F9: 2026 | G9: 2030 | H9: 工可阶段 | I9: 源城区、江东新区、 东源县 | J9: 列入省三年行动方案
A10: （二）储备项目（1项） | D10: 8.2 | E10: /
A11: 1 | B11: 河源港江东新区古竹港码头 | C11: 拟在古竹岸线建设矿石运输码头，近期拟先建设15个1000吨级泊位，设5个装船泊位、5个待泊泊位和5个锚地泊位，使用岸线长878米。 | D11: 8.2 | E11: / | F11: 2028 | G11: 2032 | H11: 规划阶段 | I11: 江东新区 | J11: 预备项目
